fUSD/lending_fUSD_20240105
["ID","MTS","AMOUNT","RATE_DAILY","PERIOD"]
[310266792,1704425510603,-500.0,0.00038356,2]
[310266793,1704425510613,-500.0,0.00038356,3]
[310266794,1704425510622,-500.0,0.00038356,3]
[310266795,1704425510632,-500.0,0.00038356,3]
[310266796,1704425510642,-500.0,0.00038356,3]
[310266797,1704425510651,-500.0,0.00038356,3]
[310266798,1704425510660,-500.0,0.00038356,3]
[310266799,1704425510669,-500.0,0.00038356,3]
[310266800,1704425510680,-500.0,0.00038356,3]
[310266801,1704425510689,-500.0,0.00038356,3]
[310266802,1704425510698,-500.0,0.00038356,3]
[310266803,1704425510708,-500.0,0.00038356,3]
[310266804,1704425510717,-500.0,0.00038356,3]
[310266805,1704425510727,-223.61027874,0.00038356,3]
[310266806,1704425510737,-500.0,0.00038356,3]
[310266807,1704425510746,-500.0,0.00038356,3]
[310266808,1704425510755,-250.0,0.00038356,14]
[310266809,1704425510765,-500.0,0.00038356,3]
[310266810,1704425510774,-399.0,0.00038356,7]
[310266811,1704425510784,-300.0,0.00038356,10]
[310266812,1704425510794,-500.0,0.00038356,3]
[310266813,1704425510803,-250.0,0.00038356,8]
[310266814,1704425510813,-539.97196298,0.00038356,3]
[310266815,1704425510822,-500.0,0.00038356,3]
[310266816,1704425510831,-192.50945563,0.00038356,3]
[310266817,1704425510841,-581.59,0.00038356,3]
[310266818,1704425510852,-501.25,0.00038356,3]
[310266819,1704425510862,-500.0,0.00038356,3]
[310266820,1704425510872,-890.64,0.00038356,3]
[310266821,1704425510881,-500.0,0.00038356,3]
[310266822,1704425510891,-500.0,0.00038356,3]
[310266823,1704425510901,-500.0,0.00038356,3]
[310266824,1704425510911,-500.0,0.00038356,3]
[310266825,1704425510920,-500.0,0.00038356,3]
[310266826,1704425510930,-544.75697834,0.00038356,3]
[310266827,1704425510940,-500.0,0.00038356,3]
[310266828,1704425510951,-479.18245854,0.00038356,3]
[310266829,1704425510960,-323.60495197,0.00038356,3]
[310266830,1704425510970,-307.50739446,0.00038356,3]
[310266831,1704425510979,-245.84506241,0.00038356,3]
[310266832,1704425510989,-500.0,0.00038356,3]
[310266833,1704425510999,-500.18,0.00038356,3]
[310266834,1704425511009,-1197.77,0.00038356,3]
[310266835,1704425511019,-500.0,0.00038356,3]
[310266836,1704425511029,-500.0,0.00038356,3]
[310266837,1704425511038,-500.0,0.00038356,3]
[310266838,1704425511047,-652.01,0.00038356,3]
[310266839,1704425511056,-202.84777627,0.00038356,3]
[310266840,1704425511065,-511.87,0.00038356,3]
[310266841,1704425511074,-500.0,0.00038356,3]
[310266842,1704425511084,-3155.09,0.00038356,3]
[310266843,1704425511093,-1385.33,0.00038356,3]
[310266844,1704425511103,-500.0,0.00038356,3]
[310266845,1704425511112,-869.26,0.00038356,3]
[310266846,1704425511121,-170.7379823,0.00038356,3]
[310266847,1704425511130,-500.0,0.00038356,3]
[310266848,1704425511140,-559.1,0.00038356,3]
[310266849,1704425511149,-500.0,0.00038356,3]
[310266850,1704425511159,-539.46581134,0.00038356,3]
[310266851,1704425511168,-500.0,0.00038356,3]
[310266852,1704425511178,-500.0,0.00038356,3]
[310266853,1704425511187,-2569.95,0.00038356,3]
[310266854,1704425511196,-500.0,0.00038356,3]
[310266855,1704425511205,-576.28,0.00038356,3]
[310266856,1704425511215,-741.91,0.00038356,3]
[310266857,1704425511224,-1829.56,0.00038356,3]
[310266858,1704425511233,-500.0,0.00038356,3]
[310266859,1704425511243,-500.0,0.00038356,3]
[310266860,1704425511252,-2961.4,0.00038356,3]
[310266861,1704425511262,-675.46,0.00038356,3]
[310266862,1704425511271,-500.0,0.00038356,3]
[310266863,1704425511281,-2578.41,0.00038356,3]
[310266864,1704425511290,-576.96,0.00038356,3]
[310266865,1704425511299,-500.0,0.00038356,3]
[310266866,1704425511309,-1512.37,0.00038356,3]
[310266867,1704425511318,-500.0,0.00038356,3]
[310266868,1704425511327,-1272.83,0.00038356,3]
[310266869,1704425511337,-500.0,0.00038356,3]
[310266870,1704425511347,-743.82,0.00038356,3]
[310266871,1704425511358,-616.09,0.00038356,3]
[310266872,1704425511367,-4571.22,0.00038356,3]
[310266873,1704425511376,-4339.97,0.00038356,3]
[310266874,1704425511386,-4803.84,0.00038356,3]
[310266875,1704425511395,-500.0,0.00038356,3]
[310266876,1704425511405,-699.3,0.00038356,3]
[310266877,1704425511414,-500.0,0.00038356,3]
[310266878,1704425511423,-2881.09,0.00038356,3]
[310266879,1704425511433,-1187.06,0.00038356,3]
[310266880,1704425511442,-741.45,0.00038356,3]
[310266881,1704425511452,-500.0,0.00038356,3]
[310266882,1704425511461,-1438.74,0.00038356,3]
[310266883,1704425511472,-713.99,0.00038356,3]
[310266884,1704425511483,-1151.77,0.00038356,3]
[310266885,1704425511494,-500.0,0.00038356,3]
[310266886,1704425511503,-1780.23,0.00038356,3]
[310266887,1704425511512,-1941.56,0.00038356,3]
[310266888,1704425511522,-737.76,0.00038356,3]
[310266889,1704425511531,-507.12,0.00038356,3]
[310266890,1704425511541,-1683.81,0.00038356,3]
[310266891,1704425511550,-757.21,0.00038356,3]
[310266892,1704425511559,-605.55,0.00038356,3]
[310266893,1704425511569,-721.22,0.00038356,3]
[310266894,1704425511579,-1636.73,0.00038356,3]
[310266895,1704425511588,-1818.9,0.00038356,3]
[310266896,1704425511597,-808.83,0.00038356,3]
[310266897,1704425511607,-500.0,0.00038356,3]
[310266898,1704425511616,-1154.3,0.00038356,3]
[310266899,1704425511625,-500.0,0.00038356,3]
[310266900,1704425511635,-2367.44,0.00038356,3]
[310266901,1704425511644,-685.21,0.00038356,3]
[310266902,1704425511653,-720.43,0.00038356,3]
[310266903,1704425511663,-12713.82,0.00038356,3]
[310266904,1704425511673,-500.0,0.00038356,3]
[310266905,1704425511683,-537.21,0.00038356,3]
[310266906,1704425511692,-500.0,0.00038356,3]
[310266907,1704425511702,-414.92955349,0.00038356,3]
[310266908,1704425511711,-1128.74,0.00038356,3]
[310266909,1704425511721,-1038.9,0.00038356,3]
[310266910,1704425511730,-1358.49,0.00038356,3]
[310266911,1704425511740,-856.28,0.00038356,3]
[310266912,1704425511749,-1000.47,0.00038356,3]
[310266913,1704425511758,-1014.3,0.00038356,3]
[310266914,1704425511768,-1090.34,0.00038356,3]
[310266915,1704425511778,-1239.16,0.00038356,3]
[310266916,1704425511787,-5374.08,0.00038356,3]
[310266917,1704425511797,-532.58,0.00038356,3]
[310266918,1704425511806,-903.2,0.00038356,3]
[310266919,1704425511816,-500.0,0.00038356,3]
[310266920,1704425511826,-548.22298631,0.00038356,3]
[310266921,1704425511835,-543.93,0.00038356,3]
[310266922,1704425511845,-500.0,0.00038356,3]
[310266923,1704425511854,-847.35,0.00038356,3]
[310266924,1704425511863,-926.28,0.00038356,3]
[310266925,1704425511873,-525.14,0.00038356,3]
[310266926,1704425511883,-500.0,0.00038356,3]
[310266927,1704425511893,-597.71,0.00038356,3]
[310266928,1704425511902,-7505.95,0.00038356,3]
[310266929,1704425511911,-714.54,0.00038356,3]
[310266930,1704425511920,-500.0,0.00038356,3]
[310266931,1704425511929,-500.0,0.00038356,3]
[310266932,1704425511940,-500.0,0.00038356,3]
[310266933,1704425511950,-500.0,0.00038356,3]
[310266934,1704425511959,-500.0,0.00038356,3]
[310266935,1704425511968,-500.0,0.00038356,3]
[310266936,1704425511977,-836.59,0.00038356,3]
[310266937,1704425511987,-500.0,0.00038356,3]
[310266938,1704425511996,-500.0,0.00038356,3]
[310266939,1704425512005,-843.48,0.00038356,3]
[310266940,1704425512014,-500.0,0.00038356,3]
[310266941,1704425512023,-500.0,0.00038356,3]
[310266942,1704425512032,-2843.39,0.00038356,3]
[310266943,1704425512041,-731.98,0.00038356,3]
[310266944,1704425512050,-281.07506581,0.00038356,3]
[310266945,1704425512059,-765.74,0.00038356,3]
[310266946,1704425512069,-687.9,0.00038356,3]
[310266947,1704425512078,-308.89032208,0.00038356,3]
[310266948,1704425512087,-500.0,0.00038356,3]
[310266949,1704425512096,-920.29,0.00038356,3]
[310266950,1704425512105,-500.0,0.00038356,3]
[310266951,1704425512114,-608.15,0.00038356,3]
[310266952,1704425512124,-500.0,0.00038356,3]
[310266953,1704425512133,-162.23876057,0.00038356,3]
[310266954,1704425512142,-538.38920738,0.00038356,3]
[310266955,1704425512151,-500.0,0.00038356,3]
[310266956,1704425512161,-995.28,0.00038356,3]
[310266957,1704425512170,-1208.34,0.00038356,3]
[310266958,1704425512179,-3826.66,0.00038356,3]
[310266959,1704425512188,-1465.93,0.00038356,3]
[310266960,1704425512198,-2214.47,0.00038356,3]
[310266961,1704425512208,-975.28,0.00038356,3]
[310266962,1704425512217,-500.0,0.00038356,3]
[310266963,1704425512227,-153.84,0.00038356,2]
[310266964,1704425512236,-1002.85,0.0003837,2]
[310266965,1704425512246,-500.0,0.00038388,2]
[310266966,1704425512255,-157.40105,0.00038398,2]
[310266967,1704425512264,-1249.23,0.000384,7]
[310266968,1704425512273,-501.28306609,0.000384,2]
[310266969,1704425512281,-2000.0,0.000384,2]
[310266970,1704425512291,-641.47533798,0.000384,2]
[310266971,1704425512300,-500.0,0.000384,2]
[310266972,1704425512310,-150.0,0.00038428,2]
[310266973,1704425512319,-150.0,0.00038473,2]
[310266974,1704425512328,-150.0,0.0003849,2]
[310266975,1704425512337,-215.55,0.00038498,4]
[310266976,1704425512347,-24387.46861742,0.000385,7]
[310266977,1704425512358,-167.0,0.00038521,2]
[310266978,1704425512367,-5000.0,0.00038527,2]
[310266979,1704425512377,-208.0,0.00038527,2]
[310266980,1704425512386,-150.0,0.00038534,2]
[310266981,1704425512395,-150.0,0.00038545,2]
[310266982,1704425512405,-150.0,0.00038552,2]
[310266983,1704425512414,-327.16038717,0.0003856,10]
[310266984,1704425512423,-327.16038717,0.0003856,10]
[310266985,1704425512432,-327.16038717,0.0003856,10]
[310266986,1704425512442,-327.16038717,0.0003856,10]
[310266987,1704425512451,-327.16038717,0.0003856,10]
[310266988,1704425512461,-327.16038717,0.0003856,10]
[310266989,1704425512470,-327.16038717,0.0003856,10]
[310266990,1704425512615,-327.16038717,0.0003856,10]
[310266991,1704425512625,-327.16038717,0.0003856,10]
[310266992,1704425512635,-327.16038717,0.0003856,10]
[310266993,1704425512645,-327.16038717,0.0003856,10]
[310266994,1704425512655,-327.16038717,0.0003856,10]
[310266995,1704425512665,-327.16038717,0.0003856,10]
[310266996,1704425512674,-327.16038717,0.0003856,10]
[310266997,1704425512684,-327.16038717,0.0003856,10]
[310266998,1704425512694,-327.16038717,0.0003856,10]
[310266999,1704425512703,-327.16038717,0.0003856,10]
[310267000,1704425512713,-327.16038717,0.0003856,10]
[310267001,1704425512723,-327.16038717,0.0003856,10]
[310267002,1704425512733,-327.16,0.0003856,10]
[310267003,1704425512744,-1308.6415487,0.0003856,10]
[310267004,1704425512754,-1308.6415487,0.0003856,10]
[310267005,1704425512763,-1308.6415487,0.0003856,10]
[310267006,1704425512773,-1308.6415487,0.0003856,10]
[310267007,1704425512783,-1308.6415487,0.0003856,10]
[310267008,1704425512793,-1308.6415487,0.0003856,10]
[310267009,1704425512803,-1308.6415487,0.0003856,10]
[310267010,1704425512813,-1308.6415487,0.0003856,10]
[310267011,1704425512823,-1308.6415487,0.0003856,10]
[310267012,1704425512833,-1308.6415487,0.0003856,10]
[310267013,1704425512843,-1308.6415487,0.0003856,10]
[310267014,1704425512853,-1308.6415487,0.0003856,10]
[310267015,1704425512864,-1308.6415487,0.0003856,10]
[310267016,1704425512874,-1308.6415487,0.0003856,10]
[310267017,1704425512883,-1308.6415487,0.0003856,10]
[310267018,1704425512893,-1308.6415487,0.0003856,10]
[310267019,1704425512904,-1308.6415487,0.0003856,10]
[310267020,1704425512913,-1308.6415487,0.0003856,10]
[310267021,1704425512923,-1308.6415487,0.0003856,10]
[310267022,1704425512933,-161.32975459,0.0003856,10]
[310267023,1704425512944,-161.32975459,0.0003856,10]
[310267024,1704425512953,-161.32975459,0.0003856,10]
[310267025,1704425512964,-161.32975459,0.0003856,10]
[310267026,1704425512974,-161.32975459,0.0003856,10]
[310267027,1704425512984,-161.32975459,0.0003856,10]
[310267028,1704425512994,-161.32975459,0.0003856,10]
[310267029,1704425513003,-161.32975459,0.0003856,10]
[310267030,1704425513013,-161.32975459,0.0003856,10]
[310267031,1704425513023,-161.32975459,0.0003856,10]
[310267032,1704425513032,-161.32975459,0.0003856,10]
[310267033,1704425513042,-161.32,0.0003856,10]
[310267034,1704425513051,-387.19141102,0.0003856,10]
[310267035,1704425513061,-387.19141102,0.0003856,10]
[310267036,1704425513071,-387.19141102,0.0003856,10]
[310267037,1704425513080,-387.19141102,0.0003856,10]
[310267038,1704425513090,-387.19141102,0.0003856,10]
[310267039,1704425513100,-387.19141102,0.0003856,10]
[310267040,1704425513110,-387.19141102,0.0003856,10]
[310267041,1704425513120,-387.19141102,0.0003856,10]
[310267042,1704425513133,-387.19141102,0.0003856,10]
[310267043,1704425513143,-387.19141102,0.0003856,10]
[310267044,1704425513153,-387.19141102,0.0003856,10]
[310267045,1704425513163,-387.19141102,0.0003856,10]
[310267046,1704425513173,-387.19141102,0.0003856,10]
[310267047,1704425513182,-387.19141102,0.0003856,10]
[310267048,1704425513191,-387.19141102,0.0003856,10]
[310267049,1704425513201,-387.19141102,0.0003856,10]
[310267050,1704425513211,-387.19141102,0.0003856,10]
[310267051,1704425513221,-387.19141102,0.0003856,10]
[310267052,1704425513231,-387.19141102,0.0003856,10]
[310267053,1704425513241,-313.55822968,0.0003856,10]
[310267054,1704425513251,-313.55822968,0.0003856,10]
[310267055,1704425513262,-313.55822968,0.0003856,10]
[310267056,1704425513271,-313.55822968,0.0003856,10]
[310267057,1704425513281,-313.55822968,0.0003856,10]
[310267058,1704425513290,-313.55822968,0.0003856,10]
[310267059,1704425513299,-313.55822968,0.0003856,10]
[310267060,1704425513309,-313.55822968,0.0003856,10]
[310267061,1704425513318,-313.55822968,0.0003856,10]
[310267062,1704425513328,-313.55822968,0.0003856,10]
[310267063,1704425513337,-313.55822968,0.0003856,10]
[310267064,1704425513347,-313.55822968,0.0003856,10]
[310267065,1704425513357,-313.55822968,0.0003856,10]
[310267066,1704425513367,-313.55822968,0.0003856,10]
[310267067,1704425513376,-313.55822968,0.0003856,10]
[310267068,1704425513385,-313.55822968,0.0003856,10]
[310267069,1704425513395,-313.55822968,0.0003856,10]
[310267070,1704425513405,-313.55822968,0.0003856,10]
[310267071,1704425513415,-313.55822968,0.0003856,10]
[310267072,1704425513424,-313.55,0.0003856,10]
[310267073,1704425513434,-1254.23291873,0.0003856,10]
[310267074,1704425513443,-1254.23291873,0.0003856,10]
[310267075,1704425513453,-1254.23291873,0.0003856,10]
[310267076,1704425513463,-1254.23291873,0.0003856,10]
[310267077,1704425513473,-1254.23291873,0.0003856,10]
[310267078,1704425513484,-1254.23291873,0.0003856,10]
[310267079,1704425513495,-1254.23291873,0.0003856,10]
[310267080,1704425513504,-1254.23291873,0.0003856,10]
[310267081,1704425513513,-1254.23291873,0.0003856,10]
[310267082,1704425513522,-1254.23291873,0.0003856,10]
[310267083,1704425513531,-1254.23291873,0.0003856,10]
[310267084,1704425513541,-1254.23291873,0.0003856,10]
[310267085,1704425513551,-1254.23291873,0.0003856,10]
[310267086,1704425513560,-1254.23291873,0.0003856,10]
[310267087,1704425513569,-1254.23291873,0.0003856,10]
[310267088,1704425513579,-1254.23291873,0.0003856,10]
[310267089,1704425513589,-1254.23291873,0.0003856,10]
[310267090,1704425513599,-1254.23291873,0.0003856,10]
[310267091,1704425513610,-1254.23291873,0.0003856,10]
[310267092,1704425513621,-553.35660762,0.0003856,10]
[310267093,1704425513631,-553.35660762,0.0003856,10]
[310267094,1704425513640,-553.35660762,0.0003856,10]
[310267095,1704425513659,-553.35660762,0.0003856,10]
[310267096,1704425513678,-553.35660762,0.0003856,10]
[310267097,1704425513696,-553.35660762,0.0003856,10]
[310267098,1704425513716,-553.35660762,0.0003856,10]
[310267099,1704425513732,-553.35660762,0.0003856,10]
[310267100,1704425513751,-553.35660762,0.0003856,10]
[310267101,1704425513769,-553.35660762,0.0003856,10]
[310267102,1704425513785,-553.35660762,0.0003856,10]
[310267103,1704425513805,-553.35660762,0.0003856,10]
[310267104,1704425513821,-553.35660762,0.0003856,10]
[310267105,1704425513840,-553.35660762,0.0003856,10]
[310267106,1704425513861,-553.35660762,0.0003856,10]
[310267107,1704425513873,-553.35660762,0.0003856,10]
[310267108,1704425513889,-553.35660762,0.0003856,10]
[310267109,1704425513906,-553.35660762,0.0003856,10]
[310267110,1704425513924,-553.35660762,0.0003856,10]
[310267111,1704425513943,-553.35,0.0003856,10]
[310267112,1704425513959,-2213.42643047,0.0003856,10]
[310267113,1704425513977,-2213.42643047,0.0003856,10]
[310267114,1704425513994,-2213.42643047,0.0003856,10]
[310267115,1704425514010,-2213.42643047,0.0003856,10]
[310267116,1704425514027,-2213.42643047,0.0003856,10]
[310267117,1704425514042,-2213.42643047,0.0003856,10]
[310267118,1704425514058,-2213.42643047,0.0003856,10]
[310267119,1704425514073,-2213.42643047,0.0003856,10]
[310267120,1704425514089,-2213.42643047,0.0003856,10]
[310267121,1704425514104,-2213.42643047,0.0003856,10]
[310267122,1704425514120,-2213.42643047,0.0003856,10]
[310267123,1704425514135,-2213.42643047,0.0003856,10]
[310267124,1704425514150,-2213.42643047,0.0003856,10]
[310267125,1704425514165,-2213.42643047,0.0003856,10]
[310267126,1704425514180,-2213.42643047,0.0003856,10]
[310267127,1704425514195,-2213.42643047,0.0003856,10]
[310267128,1704425514209,-2213.42643047,0.0003856,10]
[310267129,1704425514224,-2213.42643047,0.0003856,10]
[310267130,1704425514239,-2213.42643047,0.0003856,10]
[310267131,1704425514253,-485.34442282,0.0003856,10]
[310267132,1704425514267,-485.34442282,0.0003856,10]
[310267133,1704425514283,-485.34442282,0.0003856,10]
[310267134,1704425514296,-485.34442282,0.0003856,10]
[310267135,1704425514311,-485.34442282,0.0003856,10]
[310267136,1704425514324,-485.34442282,0.0003856,10]
[310267137,1704425514338,-485.34442282,0.0003856,10]
[310267138,1704425514352,-485.34442282,0.0003856,10]
[310267139,1704425514366,-485.34442282,0.0003856,10]
[310267140,1704425514381,-485.34442282,0.0003856,10]
[310267141,1704425514395,-485.34442282,0.0003856,10]
[310267142,1704425514410,-485.34442282,0.0003856,10]
[310267143,1704425514424,-485.34442282,0.0003856,10]
[310267144,1704425514438,-485.34442282,0.0003856,10]
[310267145,1704425514453,-485.34442282,0.0003856,10]
[310267146,1704425514467,-485.34442282,0.0003856,10]
[310267147,1704425514482,-485.34442282,0.0003856,10]
[310267148,1704425514497,-485.34442282,0.0003856,10]
[310267149,1704425514511,-485.34442282,0.0003856,10]
[310267150,1704425514526,-485.34,0.0003856,10]
[310267151,1704425514541,-1941.37769127,0.0003856,10]
[310267152,1704425514556,-1941.37769127,0.0003856,10]
[310267153,1704425514571,-1941.37769127,0.0003856,10]
[310267154,1704425514586,-1941.37769127,0.0003856,10]
[310267155,1704425514600,-1941.37769127,0.0003856,10]
[310267156,1704425514616,-1941.37769127,0.0003856,10]
[310267157,1704425514632,-1941.37769127,0.0003856,10]
[310267158,1704425514648,-1941.37769127,0.0003856,10]
[310267159,1704425514663,-1941.37769127,0.0003856,10]
[310267160,1704425514679,-1941.37769127,0.0003856,10]
[310267161,1704425514694,-1941.37769127,0.0003856,10]
[310267162,1704425514709,-1941.37769127,0.0003856,10]
[310267163,1704425514724,-1941.37769127,0.0003856,10]
[310267164,1704425514738,-1941.37769127,0.0003856,10]
[310267165,1704425514753,-1941.37769127,0.0003856,10]
[310267166,1704425514767,-1941.37769127,0.0003856,10]
[310267167,1704425514782,-1941.37769127,0.0003856,10]
[310267168,1704425514796,-1941.37769127,0.0003856,10]
[310267169,1704425514810,-1941.37769127,0.0003856,10]
[310267170,1704425514825,-1000.0,0.00038561,2]
[310267171,1704425514840,-190.03446476,0.00038562,2]
[310267172,1704425514855,-1503.97071,0.0003858,2]
[310267173,1704425514871,-157.40105,0.00038598,2]
[310267174,1704425514886,-150.0,0.00038599,2]
[310267175,1704425514901,-407.18,0.00038599,2]
[310267176,1704425514915,-293.32,0.00038599,2]
[310267177,1704425514930,-151.22,0.00038599,2]
[310267178,1704425514946,-152.1,0.00038599,2]
[310267179,1704425514961,-301.25,0.00038599,2]
[310267180,1704425514975,-320.36,0.00038599,2]
[310267181,1704425514990,-407.18,0.00038599,2]
[310267182,1704425515004,-150.0,0.00038599,2]
[310267183,1704425515019,-150.0,0.00038599,2]
[310267184,1704425515034,-293.41,0.00038599,2]
[310267185,1704425515048,-150.0,0.00038599,2]
[310267186,1704425515061,-150.5,0.00038599,2]
[310267187,1704425515075,-407.18,0.00038599,2]
[310267188,1704425515089,-150.0,0.00038599,2]
[310267189,1704425515106,-293.32,0.00038599,2]
[310267190,1704425515123,-150.0,0.00038599,2]
[310267191,1704425515137,-863.89603791,0.000386,12]
[310267192,1704425515153,-312.24553368,0.000386,2]
[310267193,1704425515168,-1309.18573038,0.000386,2]
[310267194,1704425515182,-1505.64806425,0.000386,2]
[310267195,1704425515198,-812.180076,0.000386,2]
[310267196,1704425515211,-312.24553362,0.00038613,2]
[310267197,1704425515226,-312.24553362,0.00038625,2]
[310267198,1704425515240,-510.59,0.0003863,3]
[310267199,1704425515253,-500.0,0.0003863,3]
[310267200,1704425515448,-455.25906497,0.0003863,3]
[310267201,1704425515459,-585.48,0.0003863,3]
[310267202,1704425515469,-500.0,0.0003863,3]
[310267203,1704425515482,-500.0,0.0003863,3]
[310267204,1704425515491,-500.0,0.0003863,3]
[310267205,1704425515501,-500.0,0.0003863,3]
[310267206,1704425515510,-283.2022012,0.0003863,3]
[310267207,1704425515519,-500.0,0.0003863,3]
[310267208,1704425515531,-496.67860384,0.0003863,3]
[310267209,1704425515541,-629.33200618,0.0003863,3]
[310267210,1704425515550,-607.53126903,0.0003863,3]
[310267211,1704425515559,-170.11343327,0.0003863,3]
[310267212,1704425515568,-914.92,0.0003863,3]
[310267213,1704425515577,-729.05,0.0003863,3]
[310267214,1704425515587,-1671.27,0.0003863,3]
[310267215,1704425515596,-500.0,0.0003863,3]
[310267216,1704425515605,-188.24583783,0.0003863,3]
[310267217,1704425515617,-500.0,0.0003863,3]
[310267218,1704425515626,-500.0,0.0003863,3]
[310267219,1704425515636,-500.0,0.0003863,3]
[310267220,1704425515645,-500.0,0.0003863,3]
[310267221,1704425515654,-838.94,0.0003863,3]
[310267222,1704425515663,-500.0,0.0003863,3]
[310267223,1704425515673,-171.45566849,0.0003863,3]
[310267224,1704425515682,-500.0,0.0003863,3]
[310267225,1704425515691,-500.0,0.0003863,3]
[310267226,1704425515701,-462.27728733,0.0003863,3]
[310267227,1704425515710,-500.0,0.0003863,3]
[310267228,1704425515719,-500.0,0.0003863,3]
[310267229,1704425515728,-500.0,0.0003863,3]
[310267230,1704425515737,-500.0,0.0003863,3]
[310267231,1704425515746,-500.0,0.0003863,3]
[310267232,1704425515756,-500.0,0.0003863,3]
[310267233,1704425515765,-500.0,0.0003863,3]
[310267234,1704425515774,-500.0,0.0003863,3]
[310267235,1704425515783,-500.0,0.0003863,3]
[310267236,1704425515793,-168.7110206,0.0003863,3]
[310267237,1704425515802,-500.0,0.0003863,3]
[310267238,1704425515811,-350.51368866,0.0003863,3]
[310267239,1704425515821,-581.59,0.0003863,3]
[310267240,1704425515830,-501.25,0.0003863,3]
[310267241,1704425515839,-500.0,0.0003863,3]
[310267242,1704425515849,-890.64,0.0003863,3]
[310267243,1704425515858,-500.0,0.0003863,3]
[310267244,1704425515867,-500.0,0.0003863,3]
[310267245,1704425515877,-361.86047204,0.0003863,3]
[310267246,1704425515886,-500.0,0.0003863,3]
[310267247,1704425515896,-500.18,0.0003863,3]
[310267248,1704425515905,-1197.77,0.0003863,3]
[310267249,1704425515915,-500.0,0.0003863,3]
[310267250,1704425515924,-500.0,0.0003863,3]
[310267251,1704425515934,-652.01,0.0003863,3]
[310267252,1704425515943,-511.87,0.0003863,3]
[310267253,1704425515953,-500.0,0.0003863,3]
[310267254,1704425515963,-3155.09,0.0003863,3]
[310267255,1704425515976,-1385.33,0.0003863,3]
[310267256,1704425515986,-500.0,0.0003863,3]
[310267257,1704425515996,-869.26,0.0003863,3]
[310267258,1704425516005,-500.0,0.0003863,3]
[310267259,1704425516014,-559.1,0.0003863,3]
[310267260,1704425516024,-500.0,0.0003863,3]
[310267261,1704425516033,-338.23639692,0.0003863,3]
[310267262,1704425516043,-500.0,0.0003863,3]
[310267263,1704425516053,-2569.95,0.0003863,3]
[310267264,1704425516062,-500.0,0.0003863,3]
[310267265,1704425516071,-576.28,0.0003863,3]
[310267266,1704425516081,-741.91,0.0003863,3]
[310267267,1704425516091,-1829.56,0.0003863,3]
[310267268,1704425516100,-500.0,0.0003863,3]
[310267269,1704425516110,-500.0,0.0003863,3]
[310267270,1704425516120,-2961.4,0.0003863,3]
[310267271,1704425516130,-675.46,0.0003863,3]
[310267272,1704425516139,-504.46,0.0003863,3]
[310267273,1704425516149,-2578.41,0.0003863,3]
[310267274,1704425516159,-576.96,0.0003863,3]
[310267275,1704425516168,-500.0,0.0003863,3]
[310267276,1704425516178,-1512.37,0.0003863,3]
[310267277,1704425516187,-500.0,0.0003863,3]
[310267278,1704425516197,-1272.83,0.0003863,3]
[310267279,1704425516207,-500.0,0.0003863,3]
[310267280,1704425516216,-743.82,0.0003863,3]
[310267281,1704425516225,-616.09,0.0003863,3]
[310267282,1704425516235,-4571.22,0.0003863,3]
[310267283,1704425516246,-4339.97,0.0003863,3]
[310267284,1704425516255,-4803.84,0.0003863,3]
[310267285,1704425516264,-500.0,0.0003863,3]
[310267286,1704425516274,-699.3,0.0003863,3]
[310267287,1704425516286,-437.52783573,0.0003863,3]
[310267288,1704425516297,-2881.09,0.0003863,3]
[310267289,1704425516308,-1187.06,0.0003863,3]
[310267290,1704425516319,-741.45,0.0003863,3]
[310267291,1704425516330,-500.0,0.0003863,3]